bitfinex/quotes_BTCUSD_20240607
["timestamp","ask_amount","ask_price","bid_price","bid_amount"]
[1717763000945,0.00177275,71747.0,71741.0,0.009504]
[1717763001161,0.14441893,71746.0,71741.0,0.009504]
[1717763001878,0.00177275,71745.0,71741.0,0.0243939]
[1717763002125,0.00177275,71745.0,71741.0,0.009504]
[1717763002126,0.1,71742.0,71741.0,0.009504]
[1717763002360,0.39061893,71742.0,71741.0,0.024504]
[1717763002585,0.57221893,71742.0,71741.0,0.017504]
[1717763003046,0.14441893,71742.0,71741.0,0.016504]
[1717763004130,0.14441893,71742.0,71741.0,0.236504]
[1717763004337,0.001,71746.0,71742.0,0.139387]
[1717763004546,0.001,71746.0,71741.0,0.216504]
[1717763004547,0.14441893,71745.0,71741.0,0.009504]
[1717763004759,0.14441893,71745.0,71741.0,0.017504]
[1717763004963,0.14441893,71745.0,71742.0,0.2]
[1717763004964,0.00177275,71744.0,71742.0,0.2]
[1717763005125,0.14441893,71743.0,71741.0,0.017504]
[1717763005321,0.14441893,71743.0,71741.0,0.009504]
[1717763005569,0.14441893,71743.0,71742.0,0.007]
[1717763005769,0.14441893,71743.0,71742.0,0.015]
[1717763005932,0.14441893,71743.0,71742.0,0.228]
[1717763006129,0.14441893,71743.0,71742.0,0.227]
[1717763006328,0.14441893,71743.0,71742.0,0.207]
[1717763006560,0.14411199,71743.0,71742.0,0.007]
[1717763006767,0.001,71744.0,71742.0,0.207]
[1717763006973,0.14441893,71743.0,71742.0,0.007]
[1717763007730,0.14441893,71743.0,71742.0,0.0263895]
[1717763008195,0.14541893,71743.0,71742.0,0.007]
[1717763008364,0.14541893,71743.0,71742.0,0.015]
[1717763009940,0.81101893,71743.0,71742.0,0.015]
[1717763010144,0.86260493,71743.0,71742.0,0.015]
[1717763010864,0.88560493,71743.0,71742.0,0.015]
[1717763011167,1.01498825,71743.0,71742.0,0.007]
[1717763011296,0.1462,71730.0,71719.0,0.2]
[1717763011501,0.1,71734.0,71717.0,0.0345078]
[1717763011502,0.168,71732.0,71729.0,0.43336945]
[1717763011717,0.1,71738.0,71730.0,0.06533695]
[1717763011904,0.1,71734.0,71730.0,0.06533695]
[1717763012099,0.1,71734.0,71725.0,0.0808]
[1717763012299,0.00177275,71733.0,71726.0,0.2]
[1717763012499,0.00177275,71733.0,71724.0,0.02]
[1717763012500,0.14441893,71732.0,71727.0,0.2]
[1717763012704,0.1,71734.0,71722.0,0.00757599]
[1717763012705,0.1,71734.0,71724.0,0.2]
[1717763013089,0.14441893,71733.0,71724.0,0.1]
[1717763013292,0.14441893,71733.0,71722.0,0.24700099]
[1717763013508,0.14441893,71733.0,71731.0,0.1606]
[1717763013665,0.21,71749.0,71740.0,0.1]
[1717763013666,0.1462,71744.0,71740.0,0.1]
[1717763013864,0.04154435,71757.0,71745.0,0.1]
[1717763013865,1.0,71750.0,71745.0,0.1]
[1717763014066,1.0,71750.0,71741.0,0.139388]
[1717763014067,0.1,71747.0,71741.0,0.239388]
[1717763014282,1.0,71750.0,71732.0,0.07222824]
[1717763014283,0.14441893,71746.0,71739.0,0.1]
[1717763014449,0.14441893,71746.0,71741.0,0.1]
[1717763015280,0.14441893,71746.0,71745.0,0.008]
[1717763015523,0.14441893,71746.0,71745.0,0.108]
[1717763015701,0.14441893,71746.0,71742.0,0.139387]
[1717763015911,0.14371893,71746.0,71742.0,0.1]
[1717763016124,1.0,71750.0,71749.0,0.1]
[1717763016326,1.0,71750.0,71749.0,0.341074]
[1717763017306,1.14441893,71750.0,71749.0,0.139374]
[1717763017521,1.14441893,71750.0,71747.0,0.1]
[1717763017727,1.0,71750.0,71749.0,0.1]
[1717763017926,1.0,71750.0,71749.0,0.271474]
[1717763018740,1.001,71750.0,71749.0,0.277474]
[1717763019571,1.001,71750.0,71749.0,0.145374]
[1717763020809,1.001,71750.0,71749.0,0.245374]
[1717763021354,1.001,71750.0,71749.0,0.253374]
[1717763021834,1.001,71750.0,71749.0,0.273374]
[1717763022037,1.001,71750.0,71749.0,0.511274]
[1717763022239,1.001,71750.0,71749.0,0.5902776]
[1717763022377,0.001,71750.0,71749.0,0.0902776]
[1717763022579,0.001,71750.0,71749.0,0.011274]
[1717763022845,0.001,71750.0,71749.0,0.150648]
[1717763024128,0.001,71750.0,71749.0,0.53989521]
[1717763024344,0.001,71750.0,71749.0,1.22772902]
[1717763024545,0.001,71750.0,71749.0,1.20772902]
[1717763024751,0.001,71750.0,71749.0,1.69128192]
[1717763025080,0.001,71750.0,71749.0,1.62418192]
[1717763025495,0.001,71750.0,71749.0,1.33415892]
[1717763025720,0.001,71750.0,71749.0,1.04047892]
[1717763026128,0.001,71750.0,71749.0,1.33922792]
[1717763026752,0.00068471,71750.0,71749.0,1.31922792]
[1717763028183,0.00068471,71750.0,71749.0,1.04047892]
[1717763028622,0.00068471,71750.0,71749.0,0.91770602]
[1717763028831,0.00068471,71750.0,71749.0,0.52845881]
[1717763029034,0.00068471,71750.0,71749.0,0.139374]
[1717763030108,0.02068471,71750.0,71749.0,0.139374]
[1717763030312,0.02,71747.0,71727.0,0.0754]
[1717763030525,0.02,71747.0,71730.0,0.88959996]
[1717763030526,0.14441893,71746.0,71730.0,0.88959996]
[1717763030766,0.14441893,71746.0,71741.0,0.139388]
[1717763030983,0.02,71744.0,71741.0,0.139388]
[1717763031188,0.16441893,71744.0,71741.0,0.139388]
[1717763031392,0.16441893,71744.0,71730.0,0.05261836]
[1717763031393,0.14441893,71744.0,71730.0,0.05261836]
[1717763031539,0.14441893,71744.0,71731.0,0.43711323]
[1717763031747,0.14441893,71744.0,71732.0,0.49674733]
[1717763031748,0.16441893,71744.0,71732.0,0.49674733]
[1717763031955,0.16441893,71743.0,71733.0,0.39674733]
[1717763032162,0.16441893,71743.0,71734.0,0.20757153]
[1717763032163,0.02,71741.0,71734.0,0.20757153]
[1717763032368,0.14441893,71740.0,71734.0,0.1]
[1717763032544,0.02,71737.0,71734.0,0.1]
[1717763032745,0.2462,71746.0,71725.0,0.0127576]
[1717763032746,0.02,71735.0,71730.0,0.004]
[1717763032946,0.29901893,71734.0,71730.0,0.004]
[1717763033373,0.29901893,71734.0,71722.0,0.00757599]
[1717763033374,0.02,71732.0,71722.0,0.00757599]
[1717763033616,0.02,71732.0,71722.0,0.03767057]
[1717763033617,0.16441893,71732.0,71722.0,0.03767057]
[1717763033748,0.16441893,71732.0,71727.0,0.139417]
[1717763033948,0.02,71728.0,71727.0,0.139417]
[1717763034252,0.3072381,71728.0,71717.0,0.0145078]
[1717763034376,0.1462,71718.0,71717.0,0.0145078]
[1717763034605,0.14441893,71718.0,71717.0,0.0145078]
[1717763035444,0.14441893,71718.0,71717.0,0.0225078]
[1717763036617,0.14441893,71718.0,71717.0,0.0265078]
[1717763036822,0.14441893,71718.0,71717.0,0.0145078]
[1717763037313,0.14541893,71718.0,71717.0,0.0205078]
[1717763037911,0.14441893,71718.0,71717.0,0.0145078]
[1717763038327,0.14541893,71718.0,71717.0,0.0205078]
[1717763038526,0.16541893,71718.0,71717.0,0.0205078]
[1717763038728,0.14441893,71718.0,71717.0,0.0145078]
[1717763039140,0.14541893,71718.0,71717.0,0.0185078]
[1717763039556,0.14441893,71718.0,71717.0,0.0145078]
[1717763040015,0.14441893,71718.0,71717.0,0.0185078]
[1717763040223,0.291817,71727.0,71717.0,0.0185078]
[1717763040224,0.02,71728.0,71717.0,0.0185078]
[1717763040444,0.1,71726.0,71717.0,0.0185078]
[1717763040661,0.001,71718.0,71717.0,0.0245078]
[1717763041308,0.14441893,71718.0,71717.0,0.0185078]
[1717763041746,0.14441893,71718.0,71717.0,0.0245078]
[1717763042432,0.16441893,71718.0,71717.0,0.0145078]
[1717763042842,0.16441893,71718.0,71717.0,0.0185078]
[1717763043053,0.16441893,71718.0,71717.0,0.0145078]
[1717763043484,0.16441893,71718.0,71717.0,0.0185078]
[1717763043694,0.75551893,71718.0,71717.0,0.0185078]
[1717763043910,1.08150582,71718.0,71717.0,0.0245078]
[1717763044125,1.08150582,71718.0,71710.0,1.999115]
[1717763044126,1.029445,71711.0,71710.0,0.26304917]
[1717763044339,1.029445,71711.0,71703.0,0.009515]
[1717763044340,0.530562,71704.0,71703.0,0.009515]
[1717763044559,0.530562,71704.0,71692.0,0.009515]
[1717763044560,0.1462,71693.0,71692.0,0.009515]
[1717763044793,0.31061893,71693.0,71692.0,0.009515]
[1717763045007,0.29061893,71693.0,71692.0,0.009515]
[1717763045221,0.14441893,71693.0,71692.0,0.009515]
[1717763045444,0.1,71700.0,71692.0,0.009515]
[1717763045656,0.1,71700.0,71693.0,0.0158517]
[1717763045657,0.14441893,71699.0,71693.0,0.0158517]
[1717763045825,0.00177275,71698.0,71692.0,0.009515]
[1717763046077,0.16441893,71697.0,71692.0,0.009515]
[1717763046264,0.00177275,71696.0,71692.0,0.009515]
[1717763046467,0.14441893,71695.0,71692.0,0.009515]
[1717763046708,0.00069287,71693.0,71692.0,0.009515]
[1717763046912,0.14441893,71693.0,71692.0,0.009515]
[1717763047125,0.14541893,71693.0,71692.0,0.016515]
[1717763047569,0.14441893,71693.0,71692.0,0.009515]
[1717763047777,0.29061893,71693.0,71692.0,0.009515]
[1717763047985,0.29061893,71693.0,71692.0,0.012515]
[1717763047986,0.31061893,71693.0,71692.0,0.012515]
[1717763048402,0.31061893,71693.0,71692.0,0.009515]
[1717763048646,0.88418082,71693.0,71692.0,0.009515]
[1717763048868,0.88418082,71693.0,71692.0,0.012515]
[1717763048869,0.92466382,71693.0,71692.0,0.012515]
[1717763049088,1.10650193,71693.0,71692.0,0.012515]
[1717763049295,1.10650193,71693.0,71682.0,0.009526]
[1717763049296,0.5986,71683.0,71682.0,0.009526]
[1717763049522,1.15311893,71683.0,71682.0,0.009526]
[1717763049957,1.31562193,71683.0,71682.0,0.009526]
[1717763050182,1.31562193,71683.0,71662.0,0.0144]
[1717763050183,0.70572,71674.0,71662.0,0.0144]
[1717763050399,1.10553893,71674.0,71662.0,0.0144]
[1717763050625,0.2662,71663.0,71662.0,0.0144]
[1717763050867,0.51061893,71663.0,71662.0,0.0144]
[1717763051084,1.08936093,71663.0,71662.0,0.0144]
[1717763051330,1.08936093,71663.0,71628.0,0.07222824]
[1717763051331,0.2462,71646.0,71628.0,0.07222824]
[1717763051538,0.41061893,71646.0,71634.0,0.139596]
[1717763051967,0.41061893,71646.0,71625.0,0.07222824]
[1717763051968,0.53361893,71646.0,71625.0,0.07222824]
[1717763052178,0.53361893,71646.0,71626.0,0.139613]
[1717763052179,0.67319393,71646.0,71626.0,0.139613]
[1717763052397,0.67319393,71646.0,71625.0,0.07222824]
[1717763052627,0.51361893,71646.0,71629.0,0.139606]
[1717763052853,0.53361893,71646.0,71629.0,0.139606]
[1717763053295,0.53361893,71646.0,71626.0,0.07222824]
[1717763053527,0.73361893,71646.0,71626.0,0.07222824]
[1717763053987,0.78393385,71646.0,71626.0,0.07222824]
[1717763054217,0.29061893,71646.0,71641.0,0.139583]
[1717763054448,0.29061893,71646.0,71637.0,0.07222824]
[1717763054666,0.41061893,71646.0,71645.0,0.03080269]
[1717763054900,0.39061893,71646.0,71645.0,0.0240118]
[1717763055193,0.40161893,71646.0,71645.0,0.0240118]
[1717763055420,0.73171893,71646.0,71645.0,0.0240118]
[1717763055617,0.62771893,71646.0,71645.0,0.0240118]
[1717763055824,0.82771893,71646.0,71645.0,0.0240118]
[1717763056031,1.18341893,71646.0,71645.0,0.0240118]
[1717763056483,1.18441893,71646.0,71645.0,0.0300118]
[1717763056893,0.95381144,71646.0,71645.0,0.0300118]
[1717763057316,0.85381144,71646.0,71645.0,0.0300118]
[1717763057532,0.64471144,71646.0,71645.0,0.0300118]
[1717763057738,0.74371144,71646.0,71645.0,0.0300118]
[1717763057941,0.94271144,71646.0,71645.0,0.0240118]
[1717763058144,1.08228644,71646.0,71645.0,0.0240118]
[1717763058360,1.08228644,71646.0,71618.0,0.1]
[1717763058361,0.14498502,71627.0,71621.0,0.139622]
[1717763058568,0.1,71636.0,71618.0,0.1]
[1717763058569,0.1462,71630.0,71626.0,0.43336945]
[1717763059808,0.1462,71638.0,71633.0,0.139598]
[1717763060012,0.02,71639.0,71627.0,0.00692243]
[1717763060218,0.003,71646.0,71635.0,0.2411]
[1717763060428,0.003,71646.0,71635.0,0.211681]
[1717763060646,0.003,71646.0,71645.0,0.139577]
[1717763061056,0.003,71646.0,71645.0,0.14646402]
[1717763061258,0.02,71663.0,71655.0,0.139557]
[1717763061437,0.02,71659.0,71655.0,0.139557]
[1717763061683,0.1,71665.0,71656.0,0.00682523]
[1717763061890,8e-05,71667.0,71660.0,0.139545]
[1717763062314,8e-05,71667.0,71661.0,0.00681773]
[1717763062745,8e-05,71667.0,71666.0,0.139536]
[1717763063169,8e-05,71667.0,71666.0,0.14619513]
[1717763064535,0.00108,71667.0,71666.0,0.14619513]
[1717763064738,0.00208,71667.0,71666.0,0.42526713]
[1717763064944,0.00108,71667.0,71666.0,0.24619513]
[1717763065150,8e-05,71667.0,71666.0,0.28727982]
[1717763065327,0.00108,71667.0,71666.0,0.57135182]
[1717763065689,0.00108,71667.0,71666.0,0.29427982]
[1717763065809,0.00108,71667.0,71666.0,0.28727982]
[1717763065810,8e-05,71667.0,71666.0,0.28727982]
[1717763066242,0.00208,71667.0,71666.0,0.29527982]
[1717763066654,0.00108,71667.0,71666.0,0.29327982]
[1717763066855,0.00077283,71667.0,71666.0,0.29327982]
[1717763067259,0.00077283,71667.0,71666.0,0.25219513]
[1717763067643,0.01,71679.0,71676.0,0.139515]
[1717763067863,0.02,71677.0,71666.0,0.11165913]
[1717763068071,0.14441893,71678.0,71666.0,0.144536]
[1717763068072,0.02,71669.0,71666.0,0.144536]
[1717763068282,0.02,71667.0,71666.0,0.144536]
[1717763068592,0.16441893,71667.0,71656.0,0.0827]
[1717763068796,0.16441893,71667.0,71642.0,0.1537]
[1717763068797,0.02,71656.0,71642.0,0.1537]
[1717763069027,0.3462,71665.0,71642.0,0.1537]
[1717763069028,0.02,71651.0,71643.0,0.43336945]
[1717763069223,0.02,71653.0,71648.0,0.139571]
[1717763069467,0.16441893,71652.0,71648.0,0.1535281]
[1717763069683,0.00177275,71651.0,71648.0,0.139571]
[1717763069890,0.3462,71661.0,71648.0,0.139571]
[1717763069891,0.02,71649.0,71648.0,0.139571]
[1717763070104,0.14441893,71649.0,71648.0,0.139571]
[1717763070703,0.16441893,71649.0,71648.0,0.139571]
[1717763070922,0.16441893,71649.0,71635.0,0.1502]
[1717763070923,0.02,71640.0,71635.0,0.1502]
[1717763071119,0.16619168,71648.0,71636.0,0.0511476]
[1717763071356,0.16619168,71648.0,71639.0,0.139588]
[1717763071357,0.02,71645.0,71639.0,0.139588]
[1717763071578,0.02,71643.0,71641.0,0.139584]
[1717763071799,0.14441893,71642.0,71641.0,0.139584]
[1717763072178,0.14441893,71642.0,71641.0,0.239584]
[1717763072959,0.001,71651.0,71644.0,0.279158]
[1717763073183,0.02,71661.0,71650.0,0.07222824]
[1717763073418,0.14441893,71660.0,71650.0,0.07222824]
[1717763073631,0.14441893,71660.0,71657.0,0.139552]
[1717763073750,0.02,71669.0,71658.0,0.07222824]
[1717763073983,0.02,71656.0,71652.0,0.1]
[1717763074188,0.16441893,71656.0,71645.0,0.1663329]
[1717763074391,0.14441893,71656.0,71645.0,0.1663329]
[1717763074838,0.139528,71670.0,71645.0,0.1663329]
[1717763074839,0.02,71672.0,71655.0,0.1537]
[1717763075066,0.2666,71674.0,71663.0,0.13954]
[1717763075067,0.02,71664.0,71663.0,0.13954]
[1717763075280,0.02,71664.0,71645.0,0.1663329]
[1717763075281,0.02,71660.0,71648.0,0.1537]
[1717763075509,0.16441893,71664.0,71660.0,0.139546]
[1717763075731,0.14441893,71663.0,71652.0,0.07222824]
[1717763076151,0.16441893,71663.0,71652.0,0.07222824]
[1717763076349,0.02,71660.0,71649.0,0.1]
[1717763076560,0.02,71663.0,71657.0,0.005]
[1717763076723,0.14380411,71663.0,71657.0,0.005]
[1717763076995,0.14380411,71663.0,71660.0,0.139546]
[1717763077152,0.14380411,71663.0,71660.0,0.1540006]
[1717763077352,0.02,71670.0,71665.0,0.139536]
[1717763077553,0.02,71670.0,71662.0,0.07222824]
[1717763077554,0.14441893,71670.0,71667.0,0.139533]
[1717763077889,0.14441893,71670.0,71662.0,0.07222824]
[1717763077890,0.02,71673.0,71663.0,0.1537]
[1717763078090,0.02,71674.0,71669.0,0.13953]
[1717763078260,0.01,71672.0,71665.0,0.139537]
[1717763078478,0.02,71664.0,71663.0,0.006]
[1717763078665,0.02,71662.0,71661.0,0.139545]
[1717763078835,0.16441893,71664.0,71661.0,0.139545]
[1717763079040,0.02,71668.0,71662.0,0.0144545]
[1717763079251,0.14441893,71667.0,71664.0,0.139539]
[1717763079460,0.14441893,71667.0,71665.0,0.139537]
[1717763079664,0.02,71666.0,71665.0,0.14619707]
[1717763079866,0.16441893,71666.0,71665.0,0.00666007]
[1717763080065,0.14441893,71666.0,71665.0,0.00666007]
[1717763080271,0.14441893,71666.0,71665.0,0.14619807]
[1717763080729,0.16441893,71666.0,71665.0,0.00666007]
[1717763081285,0.02,71665.0,71661.0,0.006]
[1717763081477,0.02,71668.0,71662.0,0.07222824]
[1717763081683,0.16441893,71668.0,71665.0,0.004]
[1717763081896,0.16441893,71668.0,71665.0,0.01662282]
[1717763081897,0.02,71666.0,71665.0,0.01662282]
[1717763082070,0.16441893,71668.0,71665.0,0.005]
[1717763082287,0.16441893,71668.0,71654.0,0.1]
[1717763082488,0.02,71673.0,71662.0,0.07222824]
[1717763082668,0.1,71677.0,71662.0,0.07222824]
[1717763082669,0.02,71669.0,71668.0,0.139531]
[1717763082869,0.02,71669.0,71668.0,0.14618657]
[1717763083099,0.02,71669.0,71668.0,0.00665557]
[1717763083271,0.51334443,71665.0,71664.0,0.139539]
[1717763083471,0.49334443,71665.0,71664.0,0.139539]
[1717763083924,0.49334443,71665.0,71664.0,0.15421518]
[1717763084905,0.49334443,71665.0,71654.0,0.279116]
[1717763085101,0.49334443,71665.0,71664.0,0.005]
[1717763085102,0.51334443,71665.0,71664.0,0.005]
[1717763085411,0.49334443,71665.0,71664.0,0.14454]
[1717763085871,0.51334443,71665.0,71664.0,0.14454]
[1717763086017,0.49334443,71665.0,71664.0,0.14454]
[1717763086220,0.49334443,71665.0,71664.0,0.158994]
[1717763087347,0.49334443,71665.0,71664.0,0.15054]
[1717763087574,0.55134443,71665.0,71664.0,0.15054]
[1717763087784,0.53134443,71665.0,71664.0,0.15054]
[1717763090143,0.53134443,71665.0,71664.0,0.22754]
[1717763090608,0.53134443,71665.0,71664.0,0.33879615]
[1717763090780,0.53134443,71665.0,71664.0,0.37277037]
[1717763090978,0.53134443,71665.0,71664.0,0.47277037]
[1717763091377,0.53134443,71665.0,71664.0,0.75185037]
[1717763092505,0.53134443,71665.0,71664.0,1.20463037]
[1717763092719,0.53134443,71665.0,71664.0,1.3490493]
[1717763092923,0.53134443,71665.0,71664.0,1.3660493]
[1717763093397,0.53134443,71665.0,71664.0,1.3774556]
[1717763093819,0.53134443,71665.0,71664.0,2.0518356]
[1717763094708,0.53134443,71665.0,71664.0,2.0558356]
[1717763094930,0.00086,71673.0,71672.0,1.217622]
[1717763095165,0.00086,71673.0,71672.0,1.71058018]
[1717763095370,0.00086,71673.0,71672.0,1.9179846]
[1717763095576,0.00086,71673.0,71672.0,4.7292316]
[1717763095800,0.00086,71673.0,71672.0,3.9392436]
[1717763096017,0.00086,71673.0,71672.0,2.4685336]
[1717763096236,0.00086,71673.0,71672.0,1.8573336]
[1717763096437,0.00086,71673.0,71672.0,1.85192918]
[1717763096660,0.00086,71673.0,71672.0,1.85692918]
[1717763096901,0.00024606,71673.0,71672.0,1.17788018]
[1717763097327,0.00024606,71673.0,71672.0,1.38232703]
[1717763097550,0.00024606,71673.0,71672.0,0.58258786]
[1717763097680,0.00024606,71673.0,71672.0,0.29283501]
[1717763098486,0.00024606,71673.0,71672.0,0.29683501]
[1717763098908,0.00024606,71673.0,71672.0,0.57588401]
[1717763099108,0.00024606,71673.0,71672.0,0.67688401]
[1717763099313,0.00024606,71673.0,71672.0,0.39783501]
[1717763099532,0.00024606,71673.0,71672.0,0.39683501]
[1717763100207,0.00024606,71673.0,71672.0,0.40183501]
[1717763100409,0.00024606,71673.0,71672.0,0.35917227]
[1717763100615,0.00024606,71673.0,71672.0,0.35417227]
[1717763100954,0.00024606,71673.0,71672.0,0.35917227]
[1717763101143,0.00024606,71673.0,71672.0,0.35517227]
[1717763101551,0.00024606,71673.0,71672.0,0.63822127]
[1717763101756,0.00024606,71673.0,71672.0,0.4229944]
[1717763101963,0.00024606,71673.0,71672.0,0.4189944]
[1717763102179,0.00024606,71673.0,71672.0,0.35517227]
[1717763102381,0.00024606,71673.0,71672.0,0.35917227]
[1717763102586,0.00024606,71673.0,71672.0,0.35017227]
[1717763102788,0.02024606,71673.0,71672.0,0.35017227]
[1717763103123,0.02024606,71673.0,71672.0,0.11064827]
[1717763103332,0.02,71672.0,71663.0,0.000946]
[1717763103496,0.02024606,71673.0,71664.0,0.14685213]
[1717763103692,0.02024606,71673.0,71672.0,0.005]
[1717763104341,0.02024606,71673.0,71670.0,0.139527]
[1717763104796,0.00024606,71673.0,71671.0,0.139525]
[1717763104997,0.00024606,71673.0,71672.0,0.22570474]
[1717763105162,0.00024606,71673.0,71672.0,0.28099543]
[1717763105509,0.00024606,71673.0,71672.0,0.27699543]
[1717763106139,0.07564606,71682.0,71672.0,0.12351893]
[1717763106414,0.07564606,71682.0,71675.0,0.139517]
[1717763106762,0.07503086,71682.0,71675.0,0.139517]
[1717763109183,0.07503086,71682.0,71675.0,0.141517]
[1717763109390,0.27503086,71682.0,71675.0,0.141517]
[1717763109590,0.07503086,71682.0,71676.0,0.0141517]
[1717763110711,0.07503086,71682.0,71675.0,0.141517]
[1717763110916,0.07503086,71682.0,71676.0,0.002]
[1717763112350,0.00177275,71681.0,71676.0,0.002]
[1717763112554,0.07222824,71677.0,71676.0,0.002]
[1717763112763,0.14441893,71677.0,71676.0,0.001]
[1717763113690,0.07503086,71682.0,71674.0,0.13952]
[1717763113912,0.14441893,71681.0,71675.0,0.013952]
[1717763114128,0.14441893,71681.0,71676.0,0.003]
[1717763114335,0.14441893,71681.0,71676.0,0.002]
[1717763114542,0.14441893,71681.0,71675.0,0.013952]
[1717763114758,0.2,71685.0,71676.0,0.0173472]
[1717763114995,0.1462,71692.0,71680.0,0.139508]
[1717763114996,0.1639,71688.0,71680.0,0.139508]
[1717763115205,0.1639,71694.0,71681.0,0.1]
[1717763115386,0.1639,71694.0,71690.0,0.139489]
[1717763115828,0.1629,71694.0,71690.0,0.139489]
[1717763116049,0.1629,71694.0,71691.0,0.02018418]
[1717763116266,0.1629,71694.0,71691.0,0.1350601]
[1717763116476,0.1629,71694.0,71692.0,0.12734498]
[1717763116685,0.1629,71694.0,71692.0,0.00623378]
[1717763116686,0.51271893,71693.0,71692.0,0.00623378]
[1717763116892,0.31449168,71693.0,71692.0,0.00623378]
[1717763117104,0.31449168,71693.0,71690.0,0.002]
[1717763117337,0.31449168,71693.0,71672.0,0.1]
[1717763117572,0.2,71692.0,71691.0,0.002]
[1717763117795,0.14441893,71692.0,71691.0,0.003]
[1717763118016,0.14441893,71692.0,71674.0,0.02]
[1717763118223,0.14441893,71691.0,71684.0,0.139501]
[1717763118655,0.14441893,71691.0,71681.0,0.02]
[1717763118870,0.14441893,71691.0,71682.0,0.13016928]
[1717763119072,0.14441893,71691.0,71680.0,0.02]
[1717763119073,0.14441893,71691.0,71687.0,0.139495]
[1717763119494,0.14441893,71691.0,71688.0,0.0091838]
[1717763119709,0.14441893,71691.0,71690.0,0.002]
[1717763120185,0.14441893,71691.0,71690.0,0.00917931]
[1717763120392,0.0773,71690.0,71683.0,0.239501]
[1717763120607,0.14441893,71689.0,71683.0,0.239501]
[1717763120816,0.14441893,71689.0,71684.0,0.1289626]
[1717763121031,0.1683,71685.0,71684.0,0.1289626]
[1717763121253,0.31271893,71685.0,71684.0,0.1289626]
[1717763121491,0.31271893,71685.0,71684.0,0.13064088]
[1717763122257,0.0773,71690.0,71684.0,0.13064088]
[1717763122455,0.1629,71694.0,71687.0,0.139493]
[1717763122456,0.14441893,71689.0,71687.0,0.139493]
[1717763122837,0.1629,71694.0,71688.0,0.13040574]
[1717763123063,0.14441893,71693.0,71688.0,0.13040574]
[1717763123441,0.00086,71691.0,71688.0,0.13040574]
[1717763123824,0.14527893,71691.0,71688.0,0.13040574]
[1717763124431,0.1683,71690.0,71688.0,0.15890202]
[1717763124634,0.1683,71690.0,71689.0,0.13040574]
[1717763125931,0.1683,71690.0,71689.0,0.13240574]
[1717763126140,0.14527893,71691.0,71689.0,0.13240574]
[1717763126340,0.14527893,71691.0,71690.0,0.13040574]
[1717763126938,0.00024607,71691.0,71690.0,0.26989474]
[1717763128023,0.00024607,71691.0,71690.0,0.27389474]
[1717763128225,0.00024607,71691.0,71690.0,0.26989474]
[1717763128632,0.00024607,71691.0,71690.0,0.27889474]
[1717763128834,0.00024607,71691.0,71690.0,0.68364686]
[1717763129034,0.00024607,71691.0,71690.0,0.63141862]
[1717763129286,0.00024607,71691.0,71690.0,0.72641862]
[1717763129489,0.00024607,71691.0,71690.0,1.00539662]
[1717763129851,0.00024607,71691.0,71690.0,0.87083755]
[1717763130060,0.00024607,71691.0,71690.0,0.72241862]
[1717763130276,0.00024607,71691.0,71690.0,0.64887274]
[1717763130499,0.00024607,71691.0,71690.0,0.66887274]
[1717763130741,0.00024607,71691.0,71690.0,0.67787274]
[1717763131142,0.00024607,71691.0,71690.0,0.67387274]
[1717763131378,0.00024607,71691.0,71690.0,0.65387274]
[1717763131554,0.00024607,71691.0,71690.0,0.74076642]
[1717763132778,0.00024607,71691.0,71690.0,0.46178842]
[1717763133368,0.00024607,71691.0,71690.0,0.60178842]
[1717763134566,0.00024607,71691.0,71690.0,0.62178842]
[1717763135151,0.00024607,71691.0,71690.0,0.90076642]
[1717763136879,0.16793138,71706.0,71702.0,0.139465]
[1717763137074,0.1582,71708.0,71703.0,0.1534095]
[1717763137289,0.1683,71707.0,71703.0,0.1534095]
[1717763137710,0.1582,71708.0,71703.0,0.1534095]
[1717763137943,0.1683,71707.0,71703.0,0.1534095]
[1717763138160,0.003,71706.0,71704.0,0.01734095]
[1717763139225,0.1683,71707.0,71704.0,0.15680195]
[1717763139439,0.1723,71707.0,71704.0,0.15680195]
[1717763140048,0.1723,71707.0,71704.0,0.139461]
[1717763140247,0.14441893,71706.0,71699.0,0.139471]
[1717763140453,0.14441893,71706.0,71700.0,0.27122728]
[1717763140656,0.1683,71701.0,71700.0,0.139469]
[1717763140862,0.1683,71701.0,71700.0,0.27114628]
[1717763141845,0.1683,71701.0,71700.0,0.30326091]
[1717763142396,0.1683,71701.0,71700.0,0.30026091]
[1717763142821,0.1683,71701.0,71700.0,0.32026091]
[1717763143592,0.1683,71701.0,71700.0,0.30026091]
[1717763143920,0.1683,71701.0,71700.0,0.30326091]
[1717763144771,0.1683,71701.0,71700.0,0.32326091]
[1717763144976,0.1683,71701.0,71700.0,0.30326091]
[1717763145904,0.1683,71701.0,71700.0,0.44326091]
[1717763146312,0.1582,71708.0,71700.0,0.32379191]
[1717763146529,0.1683,71705.0,71701.0,0.14757474]
[1717763146741,0.1683,71705.0,71702.0,0.13167728]
[1717763146927,0.1683,71705.0,71703.0,0.13167728]
[1717763147136,0.1682,71705.0,71704.0,0.27113928]
[1717763147349,0.1682,71705.0,71704.0,0.28620337]
[1717763148014,0.1692,71705.0,71704.0,0.30620337]
[1717763148413,0.1682,71705.0,71704.0,0.30620337]
[1717763148821,0.1732,71705.0,71704.0,0.30620337]
[1717763149030,0.1732,71705.0,71704.0,0.28620337]
[1717763149334,0.1732,71705.0,71704.0,0.15452609]
[1717763149473,0.1732,71705.0,71704.0,0.28512717]
[1717763150347,0.1732,71705.0,71704.0,0.30512717]
[1717763150774,0.005,71705.0,71704.0,0.30512717]
[1717763150973,0.005,71705.0,71704.0,0.40512717]
[1717763151378,0.005,71705.0,71704.0,0.69443128]
[1717763151587,0.005,71705.0,71704.0,0.97335528]
[1717763152073,0.1587,71720.0,71716.0,0.139438]
[1717763152231,0.1587,71720.0,71717.0,0.14454488]
[1717763152427,0.1587,71720.0,71718.0,0.13060108]
[1717763152630,0.1683,71722.0,71718.0,0.15060108]
[1717763152850,0.1683,71722.0,71719.0,0.13060108]
[1717763152996,0.0807,71723.0,71719.0,0.13060108]
[1717763153207,0.0807,71723.0,71720.0,0.14705557]